[Event "Titled Tuesday Blitz February 07 Early 2023"]
[White "Fabris, Alberto"]
[Black "Ruiz Aguilar, Pablo Alexander"]
[WhiteFideId "801348"]
[BlackFideId "4401352"]
[WhiteElo "2230"]
[BlackElo "2161"]
[Result "1-0"]
[Round "09"]
[TimeControl "180+2"]
[Date "2023.02.07"]
[WhiteClock "0:00:08"]
[BlackClock "0:00:01"]

1. e4 {[%clk 0:03:00]}  c5 {[%clk 0:02:59]} 2. Nf3 {[%clk 0:03:00]}  e6 {[%clk 0:02:59]} 3. d4 {[%clk 0:03:00]}  cxd4 {[%clk 0:03:00]} 4. Nxd4 {[%clk 0:03:01]}  a6 {[%clk 0:03:01]} 5. c4 {[%clk 0:03:00]}  d6 {[%clk 0:03:00]} 6. Nc3 {[%clk 0:03:00]}  Nf6 {[%clk 0:03:00]} 7. Be2 {[%clk 0:02:59]}  Be7 {[%clk 0:03:01]} 8. O-O {[%clk 0:02:59]}  b6 {[%clk 0:03:00]} 9. Kh1 {[%clk 0:02:56]}  Bb7 {[%clk 0:02:58]} 10. f3 {[%clk 0:02:56]}  Qc7 {[%clk 0:02:57]} 11. Be3 {[%clk 0:02:54]}  Nbd7 {[%clk 0:02:57]} 12. Rc1 {[%clk 0:02:53]}  Rc8 {[%clk 0:02:58]} 13. b3 {[%clk 0:02:52]}  Qb8 {[%clk 0:02:57]} 14. Qe1 {[%clk 0:02:49]}  O-O {[%clk 0:02:52]} 15. Qf2 {[%clk 0:02:48]}  Rfe8 {[%clk 0:02:50]} 16. Rfd1 {[%clk 0:02:45]}  Ba8 {[%clk 0:02:45]} 17. Bf1 {[%clk 0:02:44]}  Ne5 {[%clk 0:02:33]} 18. Nde2 {[%clk 0:02:32]}  b5 {[%clk 0:02:25]} 19. cxb5 {[%clk 0:02:24]}  axb5 {[%clk 0:02:26]} 20. Nd4 {[%clk 0:02:17]}  b4 {[%clk 0:02:24]} 21. Na4 {[%clk 0:02:13]}  Rxc1 {[%clk 0:02:18]} 22. Rxc1 {[%clk 0:02:12]}  d5 {[%clk 0:02:18]} 23. exd5 {[%clk 0:02:04]}  Nxd5 {[%clk 0:02:17]} 24. Bd2 {[%clk 0:02:02]}  Qa7 {[%clk 0:02:05]} 25. Kg1 {[%clk 0:01:53]}  Nc3 {[%clk 0:01:28]} 26. Be3 {[%clk 0:01:29]}  Nxa4 {[%clk 0:01:26]} 27. bxa4 {[%clk 0:01:28]}  Qxa4 {[%clk 0:01:21]} 28. Bb5 {[%clk 0:01:26]}  Qa3 {[%clk 0:01:15]} 29. Bxe8 {[%clk 0:01:24]}  Nd3 {[%clk 0:01:16]} 30. Qc2 {[%clk 0:01:17]}  Nxc1 {[%clk 0:01:15]} 31. Qxc1 {[%clk 0:01:12]}  Qxc1+ {[%clk 0:00:39]} 32. Bxc1 {[%clk 0:01:11]}  Bc5 {[%clk 0:00:40]} 33. Be3 {[%clk 0:01:10]}  Bd5 {[%clk 0:00:40]} 34. Nc2 {[%clk 0:00:45]}  Bxe3+ {[%clk 0:00:27]} 35. Nxe3 {[%clk 0:00:45]}  Bxa2 {[%clk 0:00:28]} 36. Nd1 {[%clk 0:00:39]}  Kf8 {[%clk 0:00:21]} 37. Ba4 {[%clk 0:00:37]}  Ke7 {[%clk 0:00:21]} 38. Kf2 {[%clk 0:00:37]}  Kd6 {[%clk 0:00:21]} 39. Ke3 {[%clk 0:00:37]}  Kc5 {[%clk 0:00:20]} 40. Kd3 {[%clk 0:00:35]}  Bc4+ {[%clk 0:00:20]} 41. Kd2 {[%clk 0:00:33]}  e5 {[%clk 0:00:17]} 42. Ne3 {[%clk 0:00:29]}  Be6 {[%clk 0:00:13]} 43. Kd3 {[%clk 0:00:26]}  f5 {[%clk 0:00:12]} 44. g3 {[%clk 0:00:25]}  g5 {[%clk 0:00:11]} 45. Bd1 {[%clk 0:00:19]}  h5 {[%clk 0:00:05]} 46. Be2 {[%clk 0:00:15]}  h4 {[%clk 0:00:01]} 47. gxh4 {[%clk 0:00:15]}  gxh4 {[%clk 0:00:02]} 48. Ng2 {[%clk 0:00:11]}  f4 {[%clk 0:00:01]} 49. Kd2 {[%clk 0:00:08]}  Kd4 {[%clk 0:00:01]} 50. Bd3 {[%clk 0:00:08]} 1-0


[Site "https://www.chess.com"]

[Event "Titled Tuesday Blitz February 07 Early 2023"]
[White "Szyszylo, Rafal"]
[Black "Burke, John F"]
[WhiteFideId "1109626"]
[BlackFideId "2052970"]
[WhiteElo "2091"]
[BlackElo "2013"]
[Result "1-0"]
[Round "09"]
[TimeControl "180+2"]
[Date "2023.02.07"]
[WhiteClock "0:00:29"]
[BlackClock "0:00:32"]

1. e4 {[%clk 0:03:00]}  c5 {[%clk 0:02:59]} 2. Nf3 {[%clk 0:03:00]}  Nc6 {[%clk 0:02:59]} 3. Bb5 {[%clk 0:02:58]}  e6 {[%clk 0:02:59]} 4. O-O {[%clk 0:02:57]}  Nge7 {[%clk 0:03:00]} 5. c3 {[%clk 0:02:56]}  a6 {[%clk 0:03:00]} 6. Ba4 {[%clk 0:02:56]}  b5 {[%clk 0:02:58]} 7. Bc2 {[%clk 0:02:56]}  Ng6 {[%clk 0:02:57]} 8. a3 {[%clk 0:02:53]}  d6 {[%clk 0:02:57]} 9. d4 {[%clk 0:02:53]}  cxd4 {[%clk 0:02:57]} 10. cxd4 {[%clk 0:02:52]}  Be7 {[%clk 0:02:57]} 11. Nc3 {[%clk 0:02:51]}  Bb7 {[%clk 0:02:54]} 12. Re1 {[%clk 0:02:51]}  Rc8 {[%clk 0:02:53]} 13. d5 {[%clk 0:02:40]}  Na5 {[%clk 0:02:50]} 14. dxe6 {[%clk 0:02:39]}  fxe6 {[%clk 0:02:50]} 15. Nd4 {[%clk 0:02:38]}  Qd7 {[%clk 0:02:46]} 16. Qh5 {[%clk 0:02:24]}  Bf6 {[%clk 0:02:21]} 17. Rd1 {[%clk 0:02:11]}  Rc5 {[%clk 0:02:04]} 18. Qg4 {[%clk 0:02:07]}  Kf7 {[%clk 0:01:43]} 19. f4 {[%clk 0:01:49]}  h5 {[%clk 0:01:23]} 20. Qh3 {[%clk 0:01:29]}  Nc4 {[%clk 0:01:15]} 21. e5 {[%clk 0:00:57]}  dxe5 {[%clk 0:00:57]} 22. Bxg6+ {[%clk 0:00:48]}  Kxg6 {[%clk 0:00:53]} 23. Nxe6 {[%clk 0:00:49]}  Qc6 {[%clk 0:00:45]} 24. Nxc5 {[%clk 0:00:45]}  Qxc5+ {[%clk 0:00:45]} 25. Kh1 {[%clk 0:00:46]}  e4 {[%clk 0:00:43]} 26. f5+ {[%clk 0:00:40]}  Kf7 {[%clk 0:00:43]} 27. Bf4 {[%clk 0:00:38]}  Nxb2 {[%clk 0:00:35]} 28. Rd7+ {[%clk 0:00:37]}  Kg8 {[%clk 0:00:33]} 29. Rxb7 {[%clk 0:00:37]}  Qxc3 {[%clk 0:00:32]} 30. Rb8+ {[%clk 0:00:29]}  Kh7 {[%clk 0:00:32]} 31. Qxh5# {[%clk 0:00:29]} 1-0


[Site "https://www.chess.com"]

[Event "Titled Tuesday Blitz February 07 Early 2023"]
[White "Clawitter, Craig"]
[Black "Zanette, Edgard Vinicius"]
[WhiteFideId "2023105"]
[BlackFideId "2109263"]
[WhiteElo "2050"]
[BlackElo "2085"]
[Result "0-1"]
[Round "09"]
[TimeControl "180+2"]
[Date "2023.02.07"]
[WhiteClock "0:00:47"]
[BlackClock "0:00:57"]

1. e4 {[%clk 0:02:57]}  c5 {[%clk 0:03:00]} 2. Nf3 {[%clk 0:02:58]}  d6 {[%clk 0:02:59]} 3. d4 {[%clk 0:02:57]}  cxd4 {[%clk 0:02:59]} 4. Nxd4 {[%clk 0:02:58]}  Nf6 {[%clk 0:02:59]} 5. Nc3 {[%clk 0:02:58]}  a6 {[%clk 0:02:59]} 6. Be3 {[%clk 0:02:59]}  e5 {[%clk 0:02:56]} 7. Nb3 {[%clk 0:02:59]}  Be7 {[%clk 0:02:55]} 8. f3 {[%clk 0:02:59]}  Be6 {[%clk 0:02:52]} 9. g4 {[%clk 0:02:55]}  O-O {[%clk 0:02:48]} 10. Qd2 {[%clk 0:02:51]}  Nbd7 {[%clk 0:02:43]} 11. O-O-O {[%clk 0:02:51]}  Qc7 {[%clk 0:02:43]} 12. g5 {[%clk 0:02:35]}  Nh5 {[%clk 0:02:38]} 13. Nd5 {[%clk 0:02:35]}  Bxd5 {[%clk 0:02:37]} 14. exd5 {[%clk 0:02:36]}  f6 {[%clk 0:02:30]} 15. Rg1 {[%clk 0:02:32]}  fxg5 {[%clk 0:02:19]} 16. Bxg5 {[%clk 0:02:33]}  Bxg5 {[%clk 0:02:15]} 17. Qxg5 {[%clk 0:02:31]}  Ndf6 {[%clk 0:02:14]} 18. Bh3 {[%clk 0:02:25]}  Nf4 {[%clk 0:02:10]} 19. Bf5 {[%clk 0:02:11]}  Ne2+ {[%clk 0:02:05]} 20. Kb1 {[%clk 0:02:09]}  Nxg1 {[%clk 0:02:05]} 21. Rxg1 {[%clk 0:02:10]}  a5 {[%clk 0:01:56]} 22. Nd2 {[%clk 0:01:57]}  Kh8 {[%clk 0:01:51]} 23. Qh4 {[%clk 0:01:45]}  Qc5 {[%clk 0:01:46]} 24. Qg5 {[%clk 0:01:30]}  Rf7 {[%clk 0:01:39]} 25. Ne4 {[%clk 0:01:25]}  Qxd5 {[%clk 0:01:17]} 26. Nxf6 {[%clk 0:01:00]}  gxf6 {[%clk 0:01:14]} 27. Qh5 {[%clk 0:01:00]}  Rg8 {[%clk 0:01:07]} 28. Rxg8+ {[%clk 0:00:53]}  Kxg8 {[%clk 0:01:03]} 29. Qg4+ {[%clk 0:00:54]}  Kf8 {[%clk 0:00:59]} 30. a3 {[%clk 0:00:47]}  Rg7 {[%clk 0:00:58]} 31. Qh4 {[%clk 0:00:47]}  Rg1+ {[%clk 0:00:57]} 0-1


[Site "https://www.chess.com"]

[Event "Titled Tuesday Blitz February 07 Early 2023"]
[White "Zaksaite, Salomeja"]
[Black "Kiseleva, Arina"]
[WhiteFideId "12801496"]
[BlackFideId "4164989"]
[WhiteElo "2283"]
[BlackElo "1962"]
[Result "0-1"]
[Round "09"]
[TimeControl "180+2"]
[Date "2023.02.07"]
[WhiteClock "0:00:01"]
[BlackClock "0:00:08"]

1. e4 {[%clk 0:02:59]}  c6 {[%clk 0:02:59]} 2. d4 {[%clk 0:02:58]}  d5 {[%clk 0:03:00]} 3. exd5 {[%clk 0:02:59]}  cxd5 {[%clk 0:03:00]} 4. Bd3 {[%clk 0:03:00]}  Nc6 {[%clk 0:02:59]} 5. c3 {[%clk 0:02:59]}  Nf6 {[%clk 0:02:58]} 6. h3 {[%clk 0:02:59]}  g6 {[%clk 0:02:58]} 7. Nf3 {[%clk 0:02:59]}  Bf5 {[%clk 0:02:56]} 8. Be2 {[%clk 0:03:00]}  h5 {[%clk 0:02:42]} 9. O-O {[%clk 0:02:58]}  e6 {[%clk 0:02:40]} 10. Re1 {[%clk 0:02:53]}  Be4 {[%clk 0:02:30]} 11. Nbd2 {[%clk 0:02:53]}  Be7 {[%clk 0:02:27]} 12. Nxe4 {[%clk 0:02:51]}  Nxe4 {[%clk 0:02:24]} 13. Bd3 {[%clk 0:02:50]}  Nd6 {[%clk 0:02:04]} 14. Qc2 {[%clk 0:02:30]}  Rg8 {[%clk 0:01:34]} 15. Ne5 {[%clk 0:01:31]}  Nxe5 {[%clk 0:01:28]} 16. dxe5 {[%clk 0:01:29]}  Nf5 {[%clk 0:01:17]} 17. Bb5+ {[%clk 0:01:22]}  Kf8 {[%clk 0:01:16]} 18. g4 {[%clk 0:01:09]}  hxg4 {[%clk 0:01:14]} 19. hxg4 {[%clk 0:01:08]}  a6 {[%clk 0:01:11]} 20. Bd3 {[%clk 0:00:45]}  Nh4 {[%clk 0:00:59]} 21. Bh6+ {[%clk 0:00:43]}  Ke8 {[%clk 0:00:59]} 22. Re3 {[%clk 0:00:23]}  Qd7 {[%clk 0:00:15]} 23. Rh3 {[%clk 0:00:19]}  g5 {[%clk 0:00:13]} 24. c4 {[%clk 0:00:10]}  Qc6 {[%clk 0:00:13]} 25. cxd5 {[%clk 0:00:09]}  Qxd5 {[%clk 0:00:12]} 26. Be4 {[%clk 0:00:09]}  Qc5 {[%clk 0:00:10]} 27. Qxc5 {[%clk 0:00:08]}  Bxc5 {[%clk 0:00:10]} 28. Bxb7 {[%clk 0:00:07]}  Rb8 {[%clk 0:00:09]} 29. Bc6+ {[%clk 0:00:07]}  Ke7 {[%clk 0:00:08]} 30. Bxg5+ {[%clk 0:00:05]}  Rxg5 {[%clk 0:00:08]} 31. Rxh4 {[%clk 0:00:06]}  Rxb2 {[%clk 0:00:09]} 32. Rh2 {[%clk 0:00:04]}  Rxe5 {[%clk 0:00:09]} 33. Rd1 {[%clk 0:00:03]}  Ree2 {[%clk 0:00:09]} 34. Rd7+ {[%clk 0:00:01]}  Kf6 {[%clk 0:00:08]} 0-1


[Site "https://www.chess.com"]

[Event "Titled Tuesday Blitz February 07 Early 2023"]
[White "Fajdetic, Hrvoje"]
[Black "Osiecki, Stanislaw"]
[WhiteFideId "14501945"]
[BlackFideId "1102990"]
[WhiteElo "2151"]
[BlackElo "2055"]
[Result "1-0"]
[Round "09"]
[TimeControl "180+2"]
[Date "2023.02.07"]
[WhiteClock "0:00:19"]
[BlackClock "0:00:20"]

1. f4 {[%clk 0:02:39]}  d5 {[%clk 0:02:58]} 2. Nf3 {[%clk 0:02:38]}  c5 {[%clk 0:02:59]} 3. e3 {[%clk 0:02:38]}  Nc6 {[%clk 0:02:59]} 4. Bb5 {[%clk 0:02:38]}  Bg4 {[%clk 0:02:59]} 5. Bxc6+ {[%clk 0:02:38]}  bxc6 {[%clk 0:02:58]} 6. O-O {[%clk 0:02:39]}  e6 {[%clk 0:02:58]} 7. d3 {[%clk 0:02:39]}  Nf6 {[%clk 0:02:57]} 8. b3 {[%clk 0:02:39]}  Be7 {[%clk 0:02:57]} 9. Bb2 {[%clk 0:02:40]}  O-O {[%clk 0:02:57]} 10. Nc3 {[%clk 0:02:37]}  Nd7 {[%clk 0:02:57]} 11. e4 {[%clk 0:02:36]}  d4 {[%clk 0:02:53]} 12. Na4 {[%clk 0:02:29]}  Qc7 {[%clk 0:02:44]} 13. Bc1 {[%clk 0:02:25]}  Nb6 {[%clk 0:02:27]} 14. Nb2 {[%clk 0:02:21]}  a5 {[%clk 0:02:26]} 15. a4 {[%clk 0:02:21]}  e5 {[%clk 0:02:21]} 16. f5 {[%clk 0:02:11]}  Qd8 {[%clk 0:02:14]} 17. Qe1 {[%clk 0:02:08]}  Bxf3 {[%clk 0:02:11]} 18. Rxf3 {[%clk 0:02:08]}  Bg5 {[%clk 0:02:08]} 19. Bxg5 {[%clk 0:02:00]}  Qxg5 {[%clk 0:02:08]} 20. f6 {[%clk 0:02:00]}  g6 {[%clk 0:01:51]} 21. Qf2 {[%clk 0:01:49]}  Nd7 {[%clk 0:01:48]} 22. Rf1 {[%clk 0:01:43]}  h5 {[%clk 0:01:44]} 23. Rg3 {[%clk 0:01:38]}  Qh6 {[%clk 0:01:44]} 24. Nc4 {[%clk 0:01:36]}  Rfe8 {[%clk 0:01:42]} 25. h4 {[%clk 0:00:56]}  Re6 {[%clk 0:01:40]} 26. Rg5 {[%clk 0:00:55]}  Rxf6 {[%clk 0:01:37]} 27. Qxf6 {[%clk 0:00:56]}  Nxf6 {[%clk 0:01:37]} 28. Rxf6 {[%clk 0:00:56]}  Re8 {[%clk 0:01:22]} 29. Nxa5 {[%clk 0:00:56]}  Kg7 {[%clk 0:01:05]} 30. Rf2 {[%clk 0:00:42]}  f6 {[%clk 0:01:01]} 31. Rg3 {[%clk 0:00:42]}  Re6 {[%clk 0:00:49]} 32. Nb7 {[%clk 0:00:34]}  Qc1+ {[%clk 0:00:43]} 33. Kh2 {[%clk 0:00:34]}  Qa3 {[%clk 0:00:38]} 34. Na5 {[%clk 0:00:31]}  Kf7 {[%clk 0:00:32]} 35. Nc4 {[%clk 0:00:30]}  Qa1 {[%clk 0:00:31]} 36. Rgf3 {[%clk 0:00:29]}  Ke7 {[%clk 0:00:29]} 37. a5 {[%clk 0:00:28]}  Qc1 {[%clk 0:00:27]} 38. Rf1 {[%clk 0:00:21]}  Qh6 {[%clk 0:00:26]} 39. a6 {[%clk 0:00:20]}  Qh8 {[%clk 0:00:25]} 40. a7 {[%clk 0:00:19]}  Qa8 {[%clk 0:00:25]} 41. Ra1 {[%clk 0:00:20]}  Kf7 {[%clk 0:00:24]} 42. Nb6 {[%clk 0:00:20]}  Qb7 {[%clk 0:00:20]} 43. a8=Q {[%clk 0:00:19]}  Qxa8 {[%clk 0:00:20]} 44. Rxa8 {[%clk 0:00:18]}  f5 {[%clk 0:00:20]} 45. Ra7+ {[%clk 0:00:18]}  Kf6 {[%clk 0:00:20]} 46. Nd7+ {[%clk 0:00:18]}  Ke7 {[%clk 0:00:20]} 47. Nxc5+ {[%clk 0:00:18]}  Kd6 {[%clk 0:00:20]} 48. Nxe6 {[%clk 0:00:19]} 1-0


[Site "https://www.chess.com"]

[Event "Titled Tuesday Blitz February 07 Early 2023"]
[White "Papayan, Oleg"]
[Black "lisjakzlatko1"]
[WhiteFideId "4193911"]
[WhiteElo "2253"]
[BlackElo "2211"]
[Result "0-1"]
[Round "09"]
[TimeControl "180+2"]
[Date "2023.02.07"]
[WhiteClock "0:00:08"]
[BlackClock "0:00:02"]

1. d4 {[%clk 0:03:00]}  d5 {[%clk 0:02:59]} 2. Nf3 {[%clk 0:02:57]}  Nc6 {[%clk 0:02:58]} 3. c4 {[%clk 0:02:53]}  dxc4 {[%clk 0:02:56]} 4. d5 {[%clk 0:02:52]}  Na5 {[%clk 0:02:56]} 5. e4 {[%clk 0:02:52]}  c6 {[%clk 0:02:54]} 6. dxc6 {[%clk 0:02:46]}  Qxd1+ {[%clk 0:02:52]} 7. Kxd1 {[%clk 0:02:47]}  bxc6 {[%clk 0:02:47]} 8. Bd2 {[%clk 0:02:41]}  Nb7 {[%clk 0:02:45]} 9. Bxc4 {[%clk 0:02:41]}  Nf6 {[%clk 0:02:35]} 10. Nc3 {[%clk 0:02:21]}  Bg4 {[%clk 0:02:34]} 11. h3 {[%clk 0:02:15]}  Bh5 {[%clk 0:02:26]} 12. Re1 {[%clk 0:01:58]}  Rd8 {[%clk 0:02:14]} 13. e5 {[%clk 0:01:29]}  Nd7 {[%clk 0:02:00]} 14. g4 {[%clk 0:01:00]}  Bg6 {[%clk 0:01:58]} 15. Ke2 {[%clk 0:00:58]}  Nb6 {[%clk 0:01:56]} 16. Bb3 {[%clk 0:00:48]}  Bd3+ {[%clk 0:01:56]} 17. Kd1 {[%clk 0:00:46]}  e6 {[%clk 0:01:53]} 18. Re3 {[%clk 0:00:34]}  Bc5 {[%clk 0:01:46]} 19. Rxd3 {[%clk 0:00:31]}  Rxd3 {[%clk 0:01:45]} 20. Ke2 {[%clk 0:00:32]}  Rd7 {[%clk 0:01:38]} 21. Ne4 {[%clk 0:00:31]}  Be7 {[%clk 0:01:34]} 22. Rc1 {[%clk 0:00:28]}  c5 {[%clk 0:01:26]} 23. Bg5 {[%clk 0:00:25]}  Bxg5 {[%clk 0:01:05]} 24. Nfxg5 {[%clk 0:00:26]}  O-O {[%clk 0:00:55]} 25. Nxc5 {[%clk 0:00:24]}  Rc7 {[%clk 0:00:40]} 26. Nd3 {[%clk 0:00:24]}  Rxc1 {[%clk 0:00:37]} 27. Nxc1 {[%clk 0:00:25]}  Nc5 {[%clk 0:00:36]} 28. Bc2 {[%clk 0:00:22]}  h6 {[%clk 0:00:35]} 29. Ne4 {[%clk 0:00:14]}  Rc8 {[%clk 0:00:32]} 30. Nd6 {[%clk 0:00:13]}  Rc7 {[%clk 0:00:32]} 31. b4 {[%clk 0:00:13]}  Ncd7 {[%clk 0:00:29]} 32. Kd2 {[%clk 0:00:11]}  Nxe5 {[%clk 0:00:28]} 33. Nb5 {[%clk 0:00:11]}  Rd7+ {[%clk 0:00:27]} 34. Kc3 {[%clk 0:00:11]}  Nd5+ {[%clk 0:00:25]} 35. Kb3 {[%clk 0:00:12]}  Nf3 {[%clk 0:00:22]} 36. Ne2 {[%clk 0:00:09]}  Rb7 {[%clk 0:00:21]} 37. Bd3 {[%clk 0:00:07]}  a6 {[%clk 0:00:19]} 38. Nd6 {[%clk 0:00:07]}  Rxb4+ {[%clk 0:00:18]} 39. Ka3 {[%clk 0:00:08]}  Rb6 {[%clk 0:00:16]} 40. Nc4 {[%clk 0:00:08]}  Rb8 {[%clk 0:00:14]} 41. Na5 {[%clk 0:00:07]}  Rb6 {[%clk 0:00:12]} 42. Nc4 {[%clk 0:00:06]}  Rc6 {[%clk 0:00:12]} 43. Na5 {[%clk 0:00:06]}  Rd6 {[%clk 0:00:12]} 44. Nc4 {[%clk 0:00:05]}  Rd8 {[%clk 0:00:11]} 45. Na5 {[%clk 0:00:05]}  Nc7 {[%clk 0:00:10]} 46. Nc6 {[%clk 0:00:04]}  Rd6 {[%clk 0:00:10]} 47. Nb4 {[%clk 0:00:03]}  Nb5+ {[%clk 0:00:09]} 48. Bxb5 {[%clk 0:00:03]}  axb5 {[%clk 0:00:08]} 49. Kb3 {[%clk 0:00:03]}  Nd4+ {[%clk 0:00:07]} 50. Nxd4 {[%clk 0:00:03]}  Rxd4 {[%clk 0:00:07]} 51. Nc6 {[%clk 0:00:04]}  Rf4 {[%clk 0:00:05]} 52. Nd4 {[%clk 0:00:02]}  Rxd4 {[%clk 0:00:04]} 53. f3 {[%clk 0:00:01]}  Rf4 {[%clk 0:00:04]} 54. Kc3 {[%clk 0:00:02]}  Kf8 {[%clk 0:00:03]} 55. Kd3 {[%clk 0:00:02]}  Ke7 {[%clk 0:00:04]} 56. Ke3 {[%clk 0:00:03]}  Ra4 {[%clk 0:00:03]} 57. f4 {[%clk 0:00:04]}  Kd6 {[%clk 0:00:03]} 58. h4 {[%clk 0:00:03]}  Kd5 {[%clk 0:00:03]} 59. Kf3 {[%clk 0:00:04]}  Ra3+ {[%clk 0:00:03]} 60. Kg2 {[%clk 0:00:04]}  Kd4 {[%clk 0:00:04]} 61. h5 {[%clk 0:00:05]}  Ke3 {[%clk 0:00:04]} 62. Kg3 {[%clk 0:00:06]}  Rxa2 {[%clk 0:00:04]} 63. Kh4 {[%clk 0:00:07]}  Kf3 {[%clk 0:00:03]} 64. g5 {[%clk 0:00:07]}  Ra1 {[%clk 0:00:02]} 65. gxh6 {[%clk 0:00:07]}  gxh6 {[%clk 0:00:02]} 66. Kh3 {[%clk 0:00:08]}  Rh1# {[%clk 0:00:02]} 0-1


[Site "https://www.chess.com"]

[Event "Titled Tuesday Blitz February 07 Early 2023"]
[White "Qashashvili, Alexandre"]
[Black "Cramling Bellon, Anna"]
[WhiteFideId "13600842"]
[BlackFideId "32009232"]
[WhiteElo "2505"]
[BlackElo "2043"]
[Result "1-0"]
[Round "09"]
[TimeControl "180+2"]
[Date "2023.02.07"]
[WhiteClock "0:01:00"]
[BlackClock "0:00:03"]

1. e4 {[%clk 0:02:56]}  c5 {[%clk 0:02:58]} 2. Nc3 {[%clk 0:02:56]}  Nc6 {[%clk 0:02:58]} 3. Nf3 {[%clk 0:02:56]}  e6 {[%clk 0:02:55]} 4. d4 {[%clk 0:02:56]}  cxd4 {[%clk 0:02:56]} 5. Nxd4 {[%clk 0:02:57]}  Nf6 {[%clk 0:02:57]} 6. Be3 {[%clk 0:02:55]}  Bb4 {[%clk 0:02:56]} 7. Nxc6 {[%clk 0:02:55]}  bxc6 {[%clk 0:02:56]} 8. Bd3 {[%clk 0:02:55]}  d5 {[%clk 0:02:55]} 9. exd5 {[%clk 0:02:55]}  cxd5 {[%clk 0:02:56]} 10. Bb5+ {[%clk 0:02:55]}  Bd7 {[%clk 0:02:56]} 11. Bxd7+ {[%clk 0:02:56]}  Qxd7 {[%clk 0:02:57]} 12. Qd4 {[%clk 0:02:55]}  Be7 {[%clk 0:02:51]} 13. Qa4 {[%clk 0:02:53]}  Qxa4 {[%clk 0:02:39]} 14. Nxa4 {[%clk 0:02:54]}  e5 {[%clk 0:02:37]} 15. Bc5 {[%clk 0:02:54]}  Ne4 {[%clk 0:02:28]} 16. Bxe7 {[%clk 0:02:53]}  Kxe7 {[%clk 0:02:28]} 17. f3 {[%clk 0:02:52]}  Nf6 {[%clk 0:02:22]} 18. O-O-O {[%clk 0:02:52]}  Rhc8 {[%clk 0:02:20]} 19. Rhe1 {[%clk 0:02:52]}  Kd6 {[%clk 0:02:14]} 20. Nc3 {[%clk 0:02:50]}  d4 {[%clk 0:02:12]} 21. Ne4+ {[%clk 0:02:49]}  Nxe4 {[%clk 0:02:12]} 22. Rxe4 {[%clk 0:02:49]}  f5 {[%clk 0:02:10]} 23. Re2 {[%clk 0:02:47]}  Rc5 {[%clk 0:02:08]} 24. f4 {[%clk 0:02:46]}  e4 {[%clk 0:01:26]} 25. Rxd4+ {[%clk 0:02:44]}  Rd5 {[%clk 0:01:26]} 26. Ra4 {[%clk 0:02:34]}  a5 {[%clk 0:01:23]} 27. g4 {[%clk 0:02:33]}  g6 {[%clk 0:01:22]} 28. gxf5 {[%clk 0:02:34]}  gxf5 {[%clk 0:01:23]} 29. b4 {[%clk 0:02:33]}  Rg8 {[%clk 0:01:14]} 30. bxa5 {[%clk 0:01:31]}  Rb5 {[%clk 0:00:29]} 31. a6 {[%clk 0:01:26]}  Kc7 {[%clk 0:00:21]} 32. a7 {[%clk 0:01:21]}  Kb7 {[%clk 0:00:21]} 33. Rg2 {[%clk 0:01:18]}  Rd8 {[%clk 0:00:10]} 34. a8=Q+ {[%clk 0:01:11]}  Rxa8 {[%clk 0:00:09]} 35. Rg7+ {[%clk 0:01:09]}  Kb8 {[%clk 0:00:03]} 36. Rg8+ {[%clk 0:01:02]}  Kb7 {[%clk 0:00:03]} 37. Rgxa8 {[%clk 0:01:00]} 1-0


[Site "https://www.chess.com"]

[Event "Titled Tuesday Blitz February 07 Early 2023"]
[White "Mohammadian, Mohammad"]
[Black "Stolz, Mike"]
[WhiteFideId "12566055"]
[BlackFideId "4617134"]
[WhiteElo "1398"]
[BlackElo "2330"]
[Result "0-1"]
[Round "09"]
[TimeControl "180+2"]
[Date "2023.02.07"]
[WhiteClock "0:00:53"]
[BlackClock "0:01:08"]

1. e4 {[%clk 0:03:00]}  c5 {[%clk 0:02:59]} 2. Nf3 {[%clk 0:03:00]}  e6 {[%clk 0:02:59]} 3. d4 {[%clk 0:03:00]}  cxd4 {[%clk 0:02:59]} 4. Nxd4 {[%clk 0:03:00]}  Nc6 {[%clk 0:03:00]} 5. Be3 {[%clk 0:02:58]}  Nf6 {[%clk 0:02:57]} 6. Nc3 {[%clk 0:02:54]}  Bb4 {[%clk 0:02:57]} 7. Bd3 {[%clk 0:02:51]}  d5 {[%clk 0:02:56]} 8. exd5 {[%clk 0:02:48]}  Nxd5 {[%clk 0:02:49]} 9. Nxc6 {[%clk 0:02:48]}  Nxc3 {[%clk 0:02:32]} 10. bxc3 {[%clk 0:02:44]}  Bxc3+ {[%clk 0:02:27]} 11. Bd2 {[%clk 0:02:42]}  Qf6 {[%clk 0:02:02]} 12. Nb4 {[%clk 0:02:10]}  Bxd2+ {[%clk 0:01:42]} 13. Kxd2 {[%clk 0:02:08]}  Qf4+ {[%clk 0:01:42]} 14. Ke2 {[%clk 0:01:58]}  Qxb4 {[%clk 0:01:41]} 15. Rb1 {[%clk 0:01:54]}  Qg4+ {[%clk 0:01:40]} 16. Kf1 {[%clk 0:01:51]}  Qxd1+ {[%clk 0:01:40]} 17. Rxd1 {[%clk 0:01:50]}  Bd7 {[%clk 0:01:38]} 18. f3 {[%clk 0:01:46]}  Bc6 {[%clk 0:01:37]} 19. Kf2 {[%clk 0:01:45]}  Ke7 {[%clk 0:01:37]} 20. Rhe1 {[%clk 0:01:45]}  h5 {[%clk 0:01:34]} 21. a3 {[%clk 0:01:44]}  h4 {[%clk 0:01:33]} 22. h3 {[%clk 0:01:44]}  Rad8 {[%clk 0:01:32]} 23. Rd2 {[%clk 0:01:41]}  g6 {[%clk 0:01:30]} 24. Red1 {[%clk 0:01:41]}  Rd6 {[%clk 0:01:28]} 25. Be2 {[%clk 0:01:33]}  Rhd8 {[%clk 0:01:26]} 26. Rxd6 {[%clk 0:01:31]}  Rxd6 {[%clk 0:01:26]} 27. Rxd6 {[%clk 0:01:30]}  Kxd6 {[%clk 0:01:27]} 28. f4 {[%clk 0:01:23]}  e5 {[%clk 0:01:15]} 29. fxe5+ {[%clk 0:01:22]}  Kxe5 {[%clk 0:01:16]} 30. g3 {[%clk 0:01:21]}  hxg3+ {[%clk 0:01:15]} 31. Kxg3 {[%clk 0:01:21]}  Kd4 {[%clk 0:01:14]} 32. Bd3 {[%clk 0:01:14]}  Be4 {[%clk 0:01:14]} 33. Bxe4 {[%clk 0:01:11]}  Kxe4 {[%clk 0:01:15]} 34. Kf2 {[%clk 0:01:11]}  Kf4 {[%clk 0:01:14]} 35. a4 {[%clk 0:01:06]}  a5 {[%clk 0:01:13]} 36. c3 {[%clk 0:01:02]}  b6 {[%clk 0:01:09]} 37. c4 {[%clk 0:00:58]}  g5 {[%clk 0:01:08]} 38. Kg2 {[%clk 0:00:55]}  Ke3 {[%clk 0:01:06]} 39. Kg3 {[%clk 0:00:55]}  f5 {[%clk 0:01:07]} 40. h4 {[%clk 0:00:55]}  gxh4+ {[%clk 0:01:06]} 41. Kxh4 {[%clk 0:00:55]}  f4 {[%clk 0:01:07]} 42. Kh3 {[%clk 0:00:55]}  f3 {[%clk 0:01:07]} 43. Kh2 {[%clk 0:00:52]}  f2 {[%clk 0:01:07]} 44. Kg2 {[%clk 0:00:52]}  Ke2 {[%clk 0:01:08]} 45. Kg3 {[%clk 0:00:53]}  f1=Q {[%clk 0:01:08]} 46. Kg4 {[%clk 0:00:53]}  Qf6 {[%clk 0:01:08]} 0-1


[Site "https://www.chess.com"]